bitfinex/quotes_SOLUSD_20251024
["timestamp","ask_amount","ask_price","bid_price","bid_amount"]
[1761309420194,4.37702003,194.74,194.7,4.04991626]
[1761309420396,3.38917147,194.73,194.72,4.04991626]
[1761309420614,3.38917147,194.73,194.7,4.04991626]
[1761309420797,3.38917147,194.72,194.71,4.04991626]
[1761309421209,3.38917147,194.72,194.7,4.04991626]
[1761309421522,3.38917147,194.72,194.58,1.99999999]
[1761309421523,8.12908773,194.71,194.61,0.5138482]
[1761309421693,8.12908773,194.71,194.65,4.04991626]
[1761309421694,3.38917147,194.7,194.65,4.04991626]
[1761309421896,3.38917147,194.69,194.64,4.04991626]
[1761309422099,3.38917147,194.68,194.63,4.04991626]
[1761309422302,3.38917147,194.67,194.64,4.04991626]
[1761309422507,3.38917147,194.66,194.64,4.04991626]
[1761309422711,3.38917147,194.65,194.64,4.04991626]
[1761309423319,3.38917147,194.65,194.64,9.60760635]
[1761309423498,4.2390166,194.71,194.64,9.60760635]
[1761309423700,3.39533856,194.7,194.69,4.04991626]
[1761309425133,3.39533856,194.7,194.69,9.1862869]
[1761309425423,3.39533856,194.7,194.69,9.6062869]
[1761309425614,0.1,194.74,194.69,22.4472135]
[1761309425930,4.08833005,194.73,194.7,4.04991626]
[1761309426122,3.39833005,194.72,194.71,4.04991626]
[1761309426499,3.39833005,194.72,194.69,4.04991626]
[1761309426700,3.39833005,194.71,194.68,4.04991626]
[1761309426900,4.2390166,194.73,194.7,4.04991626]
[1761309427202,4.09130534,194.72,194.69,4.04991626]
[1761309427402,3.40130534,194.71,194.69,4.04991626]
[1761309427707,3.4038321,194.7,194.63,52.36]
[1761309427916,4.04991626,194.67,194.6,0.51387461]
[1761309428119,11.69276496,194.66,194.55,0.42]
[1761309428313,4.2390166,194.64,194.59,4.04991626]
[1761309428514,4.2390166,194.62,194.52,0.42]
[1761309428717,3.4038321,194.61,194.53,18.92610413]
[1761309428930,4.2390166,194.64,194.6,4.04991626]
[1761309429129,3.4082687,194.63,194.61,4.04991626]
[1761309429312,3.4082687,194.62,194.61,4.04991626]
[1761309429516,3.4082687,194.62,194.6,4.04991626]
[1761309429726,3.4082687,194.61,194.59,4.04991626]
[1761309429922,3.4082687,194.6,194.55,5.14003932]
[1761309430123,3.4082687,194.59,194.51,5.65499717]
[1761309430433,7.6472853,194.58,194.51,4.04991626]
[1761309430725,4.04991626,194.55,194.42,5.14350375]
[1761309430929,5.14059528,194.53,194.48,4.04991626]
[1761309431132,3.4082687,194.52,194.47,4.04991626]
[1761309431430,3.4082687,194.52,194.46,4.04991626]
[1761309431431,3.4082687,194.51,194.46,4.04991626]
[1761309431627,3.4082687,194.5,194.47,4.04991626]
[1761309431815,3.4082687,194.49,194.46,4.04991626]
[1761309432018,3.4082687,194.48,194.46,4.04991626]
[1761309432212,4.73991626,194.53,194.47,4.04991626]
[1761309432407,3.41736218,194.52,194.5,4.04991626]
[1761309432617,3.41736218,194.51,194.43,70.75565169]
[1761309432828,0.69,194.53,194.5,4.04991626]
[1761309433129,3.41695731,194.52,194.5,4.04991626]
[1761309433335,32.06974229,194.56,194.5,4.04991626]
[1761309433534,4.10848532,194.55,194.44,0.51429746]
[1761309433747,3.41848532,194.54,194.5,4.04991626]
[1761309433906,3.41848532,194.53,194.5,4.04991626]
[1761309434103,3.41848532,194.52,194.5,4.04991626]
[1761309434326,4.10848532,194.52,194.5,4.04991626]
[1761309434522,0.69,194.52,194.45,5.1424849]
[1761309434807,0.69,194.52,194.5,4.04991626]
[1761309435333,9.88083225,194.52,194.42,0.2]
[1761309435513,3.41848532,194.51,194.47,4.04991626]
[1761309435826,0.69,194.52,194.47,4.04991626]
[1761309436023,3.41848532,194.51,194.47,4.04991626]
[1761309436224,4.10848532,194.52,194.47,4.04991626]
[1761309436402,3.41848532,194.51,194.47,4.04991626]
[1761309436606,39.96902972,194.56,194.5,4.04991626]
[1761309436607,3.41848532,194.53,194.5,4.04991626]
[1761309436806,4.10848532,194.52,194.49,4.04991626]
[1761309437030,0.69,194.52,194.43,5.14323921]
[1761309437234,8.15840158,194.51,194.42,0.2]
[1761309437416,7.46840158,194.5,194.42,0.2]
[1761309437610,3.41848532,194.49,194.44,4.04991626]
[1761309437829,4.10848532,194.49,194.42,0.2]
[1761309438017,4.10848532,194.48,194.43,4.04991626]
[1761309438217,3.41848532,194.47,194.43,4.04991626]
[1761309438423,4.10848532,194.47,194.42,4.24991626]
[1761309438724,3.41848532,194.51,194.46,4.04991626]
[1761309438925,3.41848532,194.52,194.5,4.04991626]
[1761309439127,3.41848532,194.55,194.5,4.04991626]
[1761309439337,0.69,194.52,194.51,4.04991626]
[1761309439514,0.69,194.52,194.5,4.04991626]
[1761309440020,0.69,194.52,194.42,42.01656836]
[1761309440235,0.69,194.52,194.49,4.04991626]
[1761309440431,12.60965041,194.51,194.45,4.04991626]
[1761309440642,4.04991626,194.48,194.42,0.2]
[1761309440931,4.04991626,194.48,194.35,50.0]
[1761309440932,4.04991626,194.43,194.32,5.14615067]
[1761309441135,4.04991626,194.41,194.34,4.04991626]
[1761309441445,4.04991626,194.41,194.22,1.99999999]
[1761309441446,4.04991626,194.36,194.29,4.04991626]
[1761309441756,3.41848532,194.36,194.22,0.51488003]
[1761309442044,4.04991626,194.34,194.28,4.04991626]
[1761309442247,4.04991626,194.32,194.26,4.04991626]
[1761309442452,4.04991626,194.32,194.22,5.14880032]
[1761309442657,5.83641552,194.31,194.2,0.51493305]
[1761309442949,4.04991626,194.26,194.19,4.04991626]
[1761309443160,4.04991626,194.23,194.14,5.15090147]
[1761309443459,4.10906678,194.27,194.2,4.04991626]
[1761309443617,27.61991626,194.27,194.2,4.04991626]
[1761309443814,0.69,194.26,194.15,0.62]
[1761309444121,4.04991626,194.25,194.14,0.5150922]
[1761309444341,4.04991626,194.25,194.18,4.04991626]
[1761309444342,0.69,194.24,194.18,4.04991626]
[1761309444843,0.69,194.24,194.13,0.51511873]
[1761309444844,5.83838651,194.24,194.06,5.15304544]
[1761309445016,4.04991626,194.19,194.07,0.51527799]
[1761309445221,4.04991626,194.16,194.05,5.15319102]
[1761309445441,4.73991626,194.15,194.08,4.04991626]
[1761309445639,0.69,194.15,194.09,4.04991626]
[1761309445836,0.69,194.14,194.09,4.04991626]
[1761309446035,0.69,194.14,194.05,18.03646852]
[1761309446036,0.69,194.14,194.08,4.04991626]
[1761309446638,0.69,194.17,194.11,4.04991626]
[1761309447048,0.69,194.17,194.13,4.04991626]
[1761309447342,4.04991626,194.22,194.15,4.04991626]
[1761309447514,4.04991626,194.22,194.07,1.13527799]
[1761309447515,23.57,194.21,194.16,4.04991626]
[1761309447719,23.57,194.21,194.08,0.51525144]
[1761309447720,4.04991626,194.2,194.08,0.51525144]
[1761309448028,0.69,194.2,194.15,4.04991626]
[1761309448350,0.69,194.19,194.09,0.51522489]
[1761309448648,0.69,194.19,194.15,4.04991626]
[1761309448817,0.69,194.19,194.1,5.15198351]
[1761309448818,22.88,194.21,194.16,4.04991626]
[1761309449023,4.73991626,194.2,194.13,4.04991626]
[1761309449322,4.04991626,194.19,194.12,4.04991626]
[1761309449629,4.04991626,194.17,194.11,4.04991626]
[1761309449936,4.04991626,194.14,194.04,64.90375855]
[1761309450135,22.88,194.17,194.08,4.04991626]
[1761309450348,4.04991626,194.13,194.04,0.2]
[1761309450522,4.04991626,194.14,194.07,4.04991626]
[1761309450841,32.08066726,194.15,194.08,4.04991626]
[1761309451042,0.69,194.14,194.08,4.04991626]
[1761309451237,4.73991626,194.14,194.07,4.04991626]
[1761309451426,4.04991626,194.13,194.04,5.35356242]
[1761309452041,0.69,194.18,194.13,4.04991626]
[1761309452748,4.04991626,194.16,194.09,4.04991626]
[1761309453238,0.69,194.15,194.09,4.04991626]
[1761309453639,0.69,194.15,194.11,4.04991626]
[1761309454032,23.57,194.18,194.12,4.04991626]
[1761309454230,0.69,194.17,194.12,4.04991626]
[1761309454843,0.69,194.17,194.09,5.15224895]
[1761309455065,0.69,194.22,194.16,4.04991626]
[1761309455229,0.69,194.22,194.1,0.51519835]
[1761309455427,4.04991626,194.18,194.12,4.04991626]
[1761309455628,4.04991626,194.2,194.14,4.04991626]
[1761309455827,22.88,194.2,194.15,4.04991626]
[1761309456045,0.69,194.19,194.16,4.04991626]
[1761309456431,0.69,194.23,194.18,4.04991626]
[1761309456649,0.69,194.23,194.19,4.04991626]
[1761309456826,22.88,194.26,194.2,4.04991626]
[1761309457150,0.69,194.25,194.22,4.04991626]
[1761309457533,0.69,194.25,194.21,4.04991626]
[1761309457726,0.69,194.25,194.19,5.14953034]
[1761309457929,22.88,194.27,194.23,4.04991626]
[1761309458126,0.69,194.29,194.25,4.04991626]
[1761309458327,4.04991626,194.28,194.21,4.04991626]
[1761309458548,0.69,194.29,194.16,4.04991626]
[1761309458727,28.02836973,194.24,194.11,74.46]
[1761309458928,26.92991626,194.21,194.14,4.04991626]
[1761309459136,4.04991626,194.2,194.13,4.04991626]
[1761309459349,4.04991626,194.18,194.11,4.04991626]
[1761309459561,4.04991626,194.18,194.1,4.04991626]
[1761309459859,4.73991626,194.17,194.1,4.04991626]
[1761309460040,0.69,194.17,194.11,4.04991626]
[1761309460225,0.69,194.16,194.11,4.04991626]
[1761309461027,0.69,194.18,194.12,4.04991626]
[1761309461228,22.88,194.17,194.11,4.04991626]
[1761309461623,0.67,194.16,194.07,5.15277992]
[1761309461830,0.67,194.16,194.11,4.04991626]
[1761309462029,0.67,194.16,194.1,4.04991626]
[1761309462230,4.71991626,194.16,194.1,4.04991626]
[1761309462650,4.04991626,194.16,194.07,5.15277992]
[1761309462851,5.82083815,194.15,194.1,4.04991626]
[1761309463036,0.67,194.18,194.11,4.04991626]
[1761309463352,4.04991626,194.14,194.07,4.04991626]
[1761309463556,10.87647521,194.16,194.1,4.04991626]
[1761309463557,4.04991626,194.16,194.1,4.04991626]
[1761309463764,0.67,194.15,194.1,4.04991626]
[1761309464127,0.67,194.15,194.04,33.4188492]
[1761309464128,0.67,194.15,194.11,4.04991626]
[1761309464334,0.67,194.15,194.1,4.04991626]
[1761309464837,0.67,194.15,194.05,0.62]
[1761309464838,0.67,194.15,194.11,4.04991626]
[1761309465049,9.20008878,194.17,194.11,4.04991626]
[1761309465236,9.87008878,194.17,194.11,4.04991626]
[1761309465758,5.82017252,194.17,194.11,4.04991626]
[1761309465943,4.71991626,194.17,194.11,4.04991626]
[1761309466344,22.88,194.18,194.16,4.04991626]
[1761309466535,0.67,194.2,194.15,4.04991626]
[1761309467040,9.86946402,194.2,194.1,28.03176116]
[1761309467240,0.67,194.19,194.1,28.03176116]
[1761309467564,4.04991626,194.17,194.11,4.04991626]
[1761309467736,0.67,194.17,194.11,4.04991626]
[1761309467937,0.67,194.16,194.08,5.15225722]
[1761309468131,4.04991626,194.15,194.08,4.04991626]
[1761309468353,4.04991626,194.15,194.06,5.15304544]
[1761309468553,0.67,194.14,194.06,5.15304544]
[1761309468865,0.67,194.14,194.1,4.04991626]
[1761309469055,0.67,194.14,194.11,4.04991626]
[1761309469442,27.59991626,194.17,194.11,4.04991626]
[1761309469641,0.67,194.17,194.13,4.04991626]
[1761309470073,32.07931352,194.2,194.14,4.04991626]
[1761309470258,4.04991626,194.18,194.12,4.04991626]
[1761309470564,4.71991626,194.19,194.13,4.04991626]
[1761309470741,0.67,194.18,194.13,4.04991626]
[1761309470946,5.15039142,194.16,194.11,4.04991626]
[1761309471162,9.20030768,194.16,194.1,4.04991626]
[1761309471350,0.67,194.15,194.1,4.04991626]
[1761309472358,0.67,194.15,194.11,4.04991626]
[1761309472548,0.67,194.15,194.06,5.15278108]
[1761309472741,0.67,194.15,194.04,0.2]
[1761309472936,9.20322726,194.05,194.04,0.2]
[1761309473445,5.823311,194.05,194.04,0.2]
[1761309473859,9.87322726,194.05,194.04,0.2]
[1761309474240,5.823311,194.05,194.04,0.2]
[1761309474454,9.87322726,194.05,194.04,0.2]
[1761309475568,0.67,194.05,194.04,0.2]
[1761309475859,28.703311,194.05,194.04,0.2]
[1761309476038,32.75322726,194.05,194.04,0.2]
[1761309476238,28.703311,194.05,194.04,0.2]
[1761309476458,0.67,194.09,194.04,0.2]
[1761309476648,23.55,194.08,194.04,0.2]
[1761309476841,5.15174654,194.11,194.06,4.04991626]
[1761309476842,0.67,194.11,194.06,4.04991626]
[1761309477083,9.20112783,194.13,194.07,4.04991626]
[1761309477245,0.67,194.11,194.07,4.04991626]
[1761309477648,0.67,194.11,194.04,0.2]
[1761309477962,0.67,194.11,194.06,4.04991626]
[1761309478745,0.67,194.11,194.07,4.04991626]
[1761309479146,3.39456415,194.12,194.09,4.04991626]
[1761309479543,3.39456415,194.12,194.04,0.2]
[1761309479544,0.67,194.11,194.04,0.2]
[1761309479739,22.88,194.09,194.04,0.2]
[1761309479966,3.39456415,194.08,194.04,0.2]
[1761309480146,3.4075329,194.08,194.05,4.04991626]
[1761309480350,3.4075329,194.08,194.06,4.04991626]
[1761309480748,3.4075329,194.08,194.07,6.07317612]
[1761309480971,3.40714963,194.11,194.07,6.07317612]
[1761309481263,3.40714963,194.14,194.1,6.07317612]
[1761309481470,3.40714963,194.13,194.07,5.15256798]
[1761309481658,3.40714963,194.12,194.04,0.82]
[1761309481854,6.07317612,194.1,194.04,0.2]
[1761309482167,3.40714963,194.09,194.04,6.27317612]
[1761309482364,3.40714963,194.08,194.04,6.27317612]
[1761309482588,3.40714963,194.07,194.04,5.97353275]
[1761309482779,3.41622033,194.11,194.06,6.07317612]
[1761309482955,3.41622033,194.1,194.08,6.07317612]
[1761309483277,3.41622033,194.09,194.04,18.8574742]
[1761309483446,4.2390166,194.14,194.05,12.01180631]
[1761309483771,3.42008252,194.13,194.08,22.88]
[1761309483994,8.5755133,194.21,194.11,22.88]
[1761309483995,4.2390166,194.21,194.11,22.88]
[1761309484163,4.2390166,194.23,194.13,60.87647521]
[1761309484363,6.07317612,194.2,194.13,6.07317612]
[1761309484583,4.2390166,194.17,194.15,6.07317612]
[1761309484783,4.2390166,194.19,194.16,6.07317612]
[1761309484993,6.74317612,194.22,194.16,6.07317612]
[1761309484994,4.2390166,194.2,194.16,6.07317612]
[1761309485192,3.80785355,194.19,194.16,6.07317612]
[1761309485368,3.80785355,194.19,194.09,22.88]
[1761309485369,4.47785355,194.18,194.09,22.88]
[1761309485569,3.80785355,194.17,194.12,6.07317612]
[1761309485794,3.81956308,194.16,194.1,6.07317612]
[1761309485968,3.81956308,194.15,194.11,6.07317612]
[1761309486280,3.81956308,194.14,194.07,0.62]
[1761309486476,10.31219272,194.16,194.1,6.07317612]
[1761309486477,3.81956308,194.13,194.1,6.07317612]
[1761309486791,4.2390166,194.17,194.07,18.65471143]
[1761309486993,3.82649507,194.16,194.08,12.01172665]
[1761309487169,8.06551167,194.15,194.05,0.62]
[1761309487488,4.2390166,194.11,194.04,5.3533747]
[1761309487791,3.82649507,194.1,194.05,6.07317612]
[1761309488094,4.2390166,194.11,194.04,0.2]
[1761309488095,3.82649507,194.09,194.04,0.2]
[1761309488263,3.82649507,194.08,194.05,6.07317612]
[1761309488465,3.82649507,194.07,194.04,0.2]
[1761309488693,6.07317612,194.05,194.04,0.2]
[1761309488863,9.89967119,194.05,194.04,0.2]
[1761309489185,19.96199879,194.05,194.04,0.2]
[1761309489578,22.53308357,194.05,194.0,0.2]
[1761309489792,10.56967119,194.04,194.0,0.2]
[1761309489988,22.88,194.01,193.99,0.2]
[1761309490298,27.37649507,194.0,193.99,0.2]
[1761309490598,10.87647521,193.99,193.88,5.15782958]
[1761309490897,6.07317612,193.97,193.9,6.07317612]
[1761309491262,6.07317612,193.95,193.89,6.07317612]
[1761309491579,0.68,193.96,193.86,6.27317612]
[1761309491580,6.07317612,193.93,193.86,6.27317612]
[1761309491779,6.07317612,193.93,193.86,0.2]
[1761309491988,22.88,193.96,193.87,0.66]
[1761309492180,4.99237156,194.04,193.95,6.07317612]
[1761309492379,3.82567479,194.03,194.0,6.07317612]
[1761309492590,0.68,194.04,194.0,6.07317612]
[1761309492774,0.68,194.04,193.95,0.66]
[1761309492967,4.50524672,194.04,193.95,0.66]
[1761309493173,6.07317612,194.01,193.9,0.51572975]
[1761309493377,9.89814542,194.0,193.94,6.07317612]
[1761309493570,6.75317612,194.01,193.95,6.07317612]
[1761309493783,6.75317612,194.01,193.94,6.07317612]
[1761309493989,9.89819081,194.0,193.94,6.07317612]
[1761309494289,6.75317612,194.01,193.94,6.07317612]
[1761309494586,6.07317612,194.0,193.94,6.07317612]
[1761309494781,0.68,194.01,193.96,6.07317612]
[1761309495183,0.68,194.01,193.96,11.22876878]
[1761309495385,6.07317612,194.04,193.98,6.07317612]
[1761309495573,0.68,194.05,193.96,5.81559266]
[1761309495574,6.75317612,194.07,194.0,6.07317612]
[1761309495903,6.07317612,194.09,194.03,6.07317612]
[1761309496066,6.07317612,194.06,194.0,6.07317612]
[1761309496272,3.82111357,194.05,193.93,11.53647521]
[1761309496483,7.94043507,194.05,193.93,34.41647521]
[1761309496790,0.68,194.04,193.96,6.07317612]
[1761309496969,6.07317612,194.0,193.93,6.07317612]
[1761309497177,5.15463917,194.0,193.93,6.07317612]
[1761309497370,6.07317612,193.97,193.91,6.07317612]
[1761309497600,0.68,193.99,193.87,0.66]
[1761309497601,10.87647521,193.98,193.87,0.66]
[1761309497772,6.07317612,193.95,193.89,6.07317612]
[1761309497972,5.83437582,194.01,193.88,10.87647521]
[1761309498193,22.88,193.99,193.88,11.53647521]
[1761309498391,22.88,193.99,193.89,0.66]
[1761309498583,22.88,193.99,193.95,6.07317612]
[1761309498785,0.68,193.99,193.94,6.07317612]
[1761309499193,0.68,193.99,193.89,0.51575635]
[1761309499394,6.07317612,193.9,193.86,0.2]
[1761309499609,6.07317612,193.87,193.77,0.66]
[1761309499781,6.07317612,193.85,193.77,0.66]
[1761309500306,6.07317612,193.86,193.79,6.07317612]
[1761309500804,6.07317612,193.84,193.76,5.36090946]
[1761309501107,0.68,193.85,193.76,0.2]
[1761309501303,10.87647521,193.84,193.76,0.2]
[1761309501600,6.07317612,193.86,193.79,6.07317612]
[1761309501819,6.07317612,193.83,193.76,6.02091162]
[1761309502102,10.87647521,193.89,193.8,6.07317612]
[1761309502322,22.88,193.88,193.83,6.07317612]
[1761309502491,0.68,193.98,193.87,6.07317612]
[1761309502797,3.80898657,193.99,193.81,83.75647521]
[1761309503104,6.07317612,193.98,193.92,6.07317612]
[1761309503316,6.07317612,193.98,193.84,72.88]
[1761309503317,6.07317612,193.99,193.88,18.05240354]
[1761309503606,6.07317612,193.98,193.89,0.66]
[1761309503807,11.22736791,194.02,193.96,6.07317612]
[1761309503993,1.99999999,194.13,193.89,1.17575635]
[1761309503994,30.9,194.07,194.01,6.07317612]
[1761309504177,6.07317612,194.09,194.03,6.07317612]
[1761309504382,6.07317612,194.06,193.96,0.51557022]
[1761309504573,6.07317612,194.06,194.0,6.07317612]
[1761309504773,22.88,194.09,194.01,6.07317612]
[1761309505013,22.88,194.08,194.02,6.07317612]
[1761309505304,11.22526848,194.1,194.04,6.07317612]
[1761309505502,6.07317612,194.12,194.06,6.07317612]
[1761309505684,9.8808905,194.11,194.05,6.07317612]
[1761309505887,3.42820781,194.11,194.04,6.07317612]
[1761309506205,3.42820781,194.11,194.07,6.07317612]
[1761309506411,0.68,194.18,194.09,6.07317612]
[1761309506704,6.07317612,194.15,194.05,0.66]
[1761309506902,6.07317612,194.15,194.09,6.07317612]
[1761309507205,6.07317612,194.14,194.05,0.66]
[1761309507412,6.07317612,194.13,194.05,5.81328659]
[1761309507594,6.07317612,194.13,194.06,6.07317612]
[1761309507793,6.07317612,194.13,194.07,6.07317612]
[1761309508106,6.07317612,194.12,194.06,6.07317612]
[1761309508288,6.07317612,194.13,194.07,6.07317612]
[1761309508492,6.07317612,194.13,194.03,0.66]
[1761309508493,6.07317612,194.09,194.03,6.07317612]
[1761309508802,22.88,194.11,194.0,28.03456555]
[1761309508803,6.07317612,194.08,194.0,28.03456555]
[1761309508977,28.95317612,194.11,194.01,0.66]
[1761309509183,28.95317612,194.11,194.05,6.07317612]
[1761309509686,28.0317312,194.11,194.06,6.07317612]
[1761309509883,22.88,194.11,194.06,6.07317612]
[1761309510084,22.88,194.11,194.07,6.07317612]
[1761309510384,6.07317612,194.13,194.07,6.07317612]
[1761309510599,12.87730503,194.14,194.06,0.66]
[1761309510600,6.07317612,194.12,194.06,6.73317612]
[1761309510994,6.07317612,194.13,194.07,6.07317612]
[1761309511187,28.03066534,194.15,194.07,6.07317612]
[1761309511397,6.07317612,194.14,194.08,6.07317612]
[1761309512088,28.0307284,194.15,194.1,6.07317612]
[1761309512295,18.01987334,194.23,194.14,6.07317612]
[1761309512495,13.31412187,194.22,194.16,6.07317612]
[1761309512805,5.14853524,194.23,194.16,6.07317612]
[1761309513002,6.07317612,194.22,194.15,6.73317612]
[1761309513204,5.14853524,194.23,194.15,6.07317612]
[1761309513398,6.07317612,194.22,194.15,6.07317612]
[1761309513597,8.57879445,194.23,194.17,6.07317612]
[1761309514000,6.07317612,194.24,194.15,0.66]
[1761309514193,3.80980546,194.23,194.15,6.07317612]
[1761309514399,3.80980546,194.23,194.17,6.07317612]
[1761309514589,6.07317612,194.23,194.13,5.15118596]
[1761309514790,23.56,194.22,194.11,0.66]
[1761309514997,18.02172905,194.21,194.12,6.07317612]
[1761309515291,6.07317612,194.2,194.14,6.07317612]
[1761309515498,6.07317612,194.19,194.13,6.07317612]
[1761309515809,0.68,194.2,194.08,0.66]
[1761309516015,6.07317612,194.1,194.01,0.66]
[1761309516191,3.43059294,194.16,194.04,6.07317612]
[1761309516389,6.07317612,194.11,194.05,6.73317612]
[1761309516695,3.43240204,194.14,194.02,23.54]
[1761309516900,6.07317612,194.08,194.02,6.73317612]
[1761309517090,6.07317612,194.11,194.05,6.07317612]
[1761309517289,5.15144604,194.13,194.08,6.07317612]
[1761309517510,5.15144604,194.13,194.04,0.66]
[1761309517704,5.15144604,194.13,194.08,6.07317612]
[1761309517907,6.07317612,194.11,194.05,6.07317612]
[1761309518110,22.88,194.11,194.06,6.07317612]
[1761309518298,6.07317612,194.12,194.06,6.07317612]
[1761309518499,6.07317612,194.12,194.07,6.07317612]
[1761309518500,3.43273264,194.12,194.07,6.07317612]
[1761309518691,3.43273264,194.12,194.06,6.07317612]
[1761309518692,9.50590876,194.12,194.06,6.07317612]
[1761309519014,9.50590876,194.12,194.05,6.73317612]
[1761309519201,8.5841909,194.12,194.06,6.07317612]
[1761309519405,8.5841909,194.12,194.05,0.66]
[1761309519406,6.07317612,194.13,194.07,6.07317612]
[1761309519589,8.5836974,194.14,194.05,5.81327133]
[1761309519590,6.07317612,194.12,194.05,5.81327133]
[1761309519908,6.07317612,194.12,194.06,6.07317612]
[1761309520313,3.43273264,194.13,194.07,0.66]
[1761309520517,6.07317612,194.13,194.07,6.73317612]
[1761309520810,14.65687352,194.14,194.08,6.07317612]
[1761309521012,3.43273264,194.14,194.1,6.07317612]
[1761309521216,3.43273264,194.14,194.09,6.07317612]
[1761309521428,9.50590876,194.17,194.1,0.67]
[1761309521626,6.07317612,194.17,194.1,0.67]
[1761309521932,6.07317612,194.17,194.11,6.07317612]
[1761309522109,6.07317612,194.17,194.1,0.67]
[1761309522420,6.07317612,194.17,194.11,6.07317612]
[1761309522628,9.50590876,194.18,194.12,6.07317612]
[1761309522926,26.31273264,194.18,194.1,0.67]
[1761309523108,6.07317612,194.23,194.13,5.15118734]
[1761309523429,22.88,194.22,194.12,28.03144558]
[1761309523723,3.42997832,194.21,194.13,0.67]
[1761309523926,0.7,194.21,194.14,6.07317612]
[1761309524123,10.20315444,194.21,194.15,6.07317612]
[1761309524424,6.07317612,194.2,194.14,6.07317612]
[1761309524616,6.07317612,194.21,194.13,0.67]
[1761309524805,6.07317612,194.18,194.12,6.07317612]
[1761309525121,6.07317612,194.17,194.1,28.70175336]
[1761309525422,21.4537484,194.19,194.1,29.62317612]
[1761309525724,21.4537484,194.19,194.06,13.39758328]
[1761309525725,6.07317612,194.15,194.06,11.54647521]
[1761309525935,6.07317612,194.15,194.08,6.07317612]
[1761309526109,6.07317612,194.13,194.07,5.15258273]
[1761309526422,6.07317612,194.14,194.08,6.07317612]
[1761309527209,5.15105879,194.14,194.09,6.07317612]
[1761309527402,5.15089215,194.15,194.09,6.07317612]
[1761309527602,6.07317612,194.14,194.08,11.2256611]
[1761309527825,6.07317612,194.14,194.06,0.67]
[1761309527826,6.07317612,194.14,194.07,11.22593795]
[1761309528013,6.07317612,194.13,194.07,11.22593795]
[1761309528311,6.07317612,194.13,194.03,0.51538421]
[1761309528312,6.07317612,194.11,194.02,62.46486782]
[1761309528513,6.07317612,194.06,193.98,0.67]
[1761309528726,6.07317612,194.06,194.0,6.07317612]
[1761309529107,5.153311,194.05,193.99,6.74317612]
[1761309529425,8.58294186,194.07,194.0,6.07317612]
[1761309529638,14.65611798,194.07,194.01,6.07317612]
[1761309530138,6.07317612,194.06,194.0,6.07317612]
[1761309530422,6.07317612,194.08,194.02,6.07317612]
[1761309530616,6.07317612,194.08,194.0,0.67]
[1761309530816,6.07317612,194.07,194.0,0.67]
[1761309531036,6.07317612,194.08,194.02,6.07317612]
[1761309531233,3.42997832,194.08,194.04,6.07317612]
[1761309531612,8.58186273,194.11,194.06,6.07317612]
[1761309531811,5.15188441,194.11,194.06,6.07317612]
[1761309532410,11.22506053,194.11,194.05,0.67]
[1761309532725,6.07317612,194.1,194.05,0.67]
[1761309532906,6.07317612,194.1,194.04,6.07317612]
[1761309533103,14.65503885,194.11,194.03,5.15375572]
[1761309533309,6.07317612,194.09,194.04,5.15344572]
[1761309533611,6.07317612,194.05,193.98,11.89823506]
[1761309533814,6.07317612,194.04,193.98,5.82505894]
[1761309534004,6.07317612,194.04,193.98,11.89823506]
[1761309534204,6.07317612,194.03,193.98,5.82505894]
[1761309534406,6.07317612,194.01,193.95,6.07317612]
[1761309534833,6.07317612,193.99,193.94,5.82623388]
[1761309535017,6.07317612,193.97,193.91,11.23020773]
[1761309535214,6.07317612,193.98,193.91,5.15703161]
[1761309535416,6.07317612,193.98,193.92,6.07317612]
[1761309535614,5.15493191,193.99,193.92,6.74317612]
[1761309535818,6.07317612,193.97,193.91,5.15703161]
[1761309536214,6.07317612,193.97,193.91,11.23020773]
[1761309537112,6.07317612,193.96,193.91,5.15703161]
[1761309537345,6.07317612,193.97,193.91,6.07317612]
[1761309537556,5.15522523,193.98,193.9,11.23044113]
[1761309537557,6.07317612,193.96,193.9,11.23044113]
[1761309537862,6.07317612,193.94,193.89,5.82752908]
[1761309538013,11.59647521,194.04,193.9,1.22572975]
[1761309538321,6.07317612,194.0,193.94,6.07317612]
[1761309538522,3.43544832,194.01,193.94,6.07317612]
[1761309538715,3.43544832,194.01,193.95,6.07317612]
[1761309538916,9.50862444,194.01,193.95,6.07317612]
[1761309539128,3.43544832,194.01,193.96,5.1557022]
[1761309539439,3.43544832,194.01,193.98,6.07317612]
[1761309539645,8.5888323,194.05,193.97,0.71]